bitfinex/quotes_BTCUSD_20220201
["timestamp","ask_amount","ask_price","bid_price","bid_amount"]
[1643741716165,0.0515,38752.0,38742.0,0.00138551]
[1643741716370,0.23260322,38751.0,38742.0,0.00138551]
[1643741716566,0.064537,38754.0,38742.0,0.00138551]
[1643741716567,0.24329207,38753.0,38742.0,0.00138551]
[1643741716766,0.23128214,38751.0,38744.0,0.12477878]
[1643741716967,0.23489275,38750.0,38744.0,0.12477878]
[1643741717267,0.22817885,38750.0,38746.0,0.00138537]
[1643741717469,0.27687915,38755.0,38746.0,0.00138537]
[1643741717937,0.23559933,38756.0,38750.0,0.08967296]
[1643741718131,0.26409287,38759.0,38750.0,0.08967296]
[1643741718329,0.60433524,38758.0,38751.0,0.00138517]
[1643741718530,0.23872321,38757.0,38751.0,0.00138517]
[1643741718938,0.349259,38756.0,38751.0,0.00138517]
[1643741719431,0.349259,38757.0,38745.0,0.1153]
[1643741719631,0.31541122,38758.0,38752.0,0.00138516]
[1643741719832,0.349259,38757.0,38752.0,0.00138516]
[1643741720030,0.349259,38757.0,38752.0,0.07646805]
[1643741720232,0.37973143,38762.0,38752.0,0.07646805]
[1643741720432,0.60013922,38761.0,38752.0,0.07646805]
[1643741720634,0.02189634,38760.0,38752.0,0.07508289]
[1643741720831,0.02189634,38760.0,38754.0,0.00138507]
[1643741721232,0.24158102,38759.0,38754.0,0.00138507]
[1643741721874,0.24158102,38759.0,38752.0,0.07508289]
[1643741722075,0.24158102,38759.0,38754.0,0.00138507]
[1643741722475,0.22822844,38758.0,38754.0,0.00138507]
[1643741722677,0.24158102,38759.0,38754.0,0.00138507]
[1643741722977,0.22780725,38758.0,38752.0,0.07508289]
[1643741723178,0.22781622,38758.0,38754.0,0.00138507]
[1643741723778,0.349259,38757.0,38754.0,0.00138507]
[1643741723982,0.55727988,38756.0,38754.0,0.00138507]
[1643741724183,8.31e-05,38754.0,38744.0,0.010328]
[1643741724377,2.04753169,38755.0,38744.0,0.010328]
[1643741724378,0.0515,38753.0,38744.0,0.010328]
[1643741724578,0.30348057,38752.0,38744.0,0.010328]
[1643741724778,0.33964963,38751.0,38744.0,0.010328]
[1643741725079,0.30075324,38750.0,38744.0,0.010328]
[1643741725277,0.0515,38749.0,38744.0,0.010328]
[1643741725520,0.23841928,38748.0,38744.0,0.010328]
[1643741725722,0.0515,38747.0,38745.0,0.00138539]
[1643741725923,0.55,38746.0,38745.0,0.00138539]
[1643741726319,0.0515,38747.0,38745.0,0.00138539]
[1643741726724,0.0515,38747.0,38744.0,0.010328]
[1643741726921,0.0515,38747.0,38744.0,0.01171342]
[1643741727528,0.26493034,38745.0,38744.0,0.01171342]
[1643741727725,1.08643114,38745.0,38744.0,0.01171342]
[1643741727922,1.43569014,38745.0,38744.0,0.010328]
[1643741728522,1.1707598,38745.0,38744.0,0.010328]
[1643741728722,0.6207598,38745.0,38744.0,0.010328]
[1643741728927,0.6207598,38745.0,38743.0,0.00138548]
[1643741729174,0.24309184,38746.0,38743.0,0.00138548]
[1643741729381,0.29290523,38746.0,38743.0,0.00138548]
[1643741729676,0.0515,38747.0,38743.0,0.00138548]
[1643741730276,0.0515,38747.0,38741.0,0.08926477]
[1643741730475,0.0515,38747.0,38743.0,0.00138546]
[1643741730675,0.23411157,38746.0,38743.0,0.00138546]
[1643741730879,0.400759,38745.0,38743.0,0.00138546]
[1643741731078,1.15824028,38744.0,38743.0,0.00138546]
[1643741731276,1.65899928,38744.0,38743.0,0.00138546]
[1643741731476,1.65899928,38744.0,38740.0,0.002]
[1643741731477,1.55899928,38744.0,38740.0,0.002]
[1643741731677,0.63699504,38743.0,38742.0,0.00138551]
[1643741731881,0.99157239,38743.0,38742.0,0.00138551]
[1643741732179,1.09157239,38743.0,38742.0,0.00138551]
[1643741732577,1.69157239,38743.0,38740.0,0.002]
[1643741732778,1.69157239,38743.0,38741.0,0.00138555]
[1643741733023,0.96325335,38742.0,38741.0,0.00138555]
[1643741733220,1.36401235,38742.0,38741.0,0.00138555]
[1643741733529,1.36401235,38742.0,38729.0,0.0028693]
[1643741733530,1.4,38739.0,38729.0,0.0028693]
[1643741733729,1.4,38739.0,38728.0,0.0042]
[1643741733730,0.6439,38730.0,38728.0,0.0042]
[1643741733927,0.6439,38730.0,38726.0,0.0011]
[1643741733928,1.4,38728.0,38726.0,0.0011]
[1643741734125,1.3,38726.0,38722.0,0.0031]
[1643741734322,0.500759,38725.0,38722.0,0.0031]
[1643741734524,1.8439,38723.0,38722.0,0.0031]
[1643741734722,2.394659,38723.0,38722.0,0.0031]
[1643741736967,1.194659,38723.0,38722.0,0.0031]
[1643741737370,1.044659,38723.0,38722.0,0.0031]
[1643741738570,1.044659,38723.0,38722.0,0.3531]
[1643741738773,0.0515,38723.0,38722.0,0.3531]
[1643741738970,0.0515,38733.0,38722.0,0.0031]
[1643741739170,0.00645144,38722.0,38721.0,0.00337933]
[1643741739774,0.00645144,38722.0,38721.0,0.002]
[1643741741635,0.18719127,38728.0,38721.0,0.002]
[1643741741838,0.24972281,38726.0,38720.0,0.45971083]
[1643741742035,0.064589,38724.0,38720.0,0.45971083]
[1643741742234,0.6483881,38723.0,38720.0,0.45902]
[1643741742437,0.6983881,38723.0,38721.0,0.00137932]
[1643741742634,1.191009,38722.0,38721.0,0.00137932]
[1643741742833,1.87588724,38722.0,38721.0,0.00137932]
[1643741743033,2.01723217,38722.0,38721.0,0.00137932]
[1643741743435,2.01723217,38722.0,38720.0,0.0022]
[1643741743639,1.98343854,38721.0,38720.0,0.00357937]
[1643741743835,2.03493854,38721.0,38720.0,0.00357937]
[1643741744673,2.03493854,38721.0,38720.0,0.0022]
[1643741744874,2.08493854,38721.0,38720.0,0.0022]
[1643741745080,2.18493854,38721.0,38720.0,0.0022]
[1643741745774,1.1,38720.0,38719.0,0.0005]
[1643741745975,0.850759,38720.0,38719.0,0.00187941]
[1643741746175,1.1445222,38720.0,38719.0,0.00187941]
[1643741746382,1.7945222,38720.0,38719.0,0.00187941]
[1643741746978,1.7945222,38720.0,38719.0,0.0005]
[1643741747177,1.1445222,38720.0,38719.0,0.0005]
[1643741748421,1.5945222,38720.0,38719.0,0.0005]
[1643741748821,1.6945222,38720.0,38719.0,0.0005]
[1643741749021,1.2445222,38720.0,38719.0,0.0005]
[1643741749221,1.2445222,38720.0,38716.0,0.0011]
[1643741749222,1.4,38719.0,38716.0,0.0011]
[1643741749423,1.529225,38717.0,38716.0,0.0011]
[1643741749624,2.04511003,38717.0,38716.0,0.0011]
[1643741749822,2.14511003,38717.0,38716.0,0.0011]
[1643741750421,1.25,38716.0,38715.0,0.0001]
[1643741750623,1.879988,38716.0,38715.0,0.0001]
[1643741750821,1.929988,38716.0,38715.0,0.0001]
[1643741751023,1.2,38715.0,38713.0,0.0031]
[1643741751224,1.850759,38714.0,38708.0,0.0022]
[1643741751425,0.68314129,38713.0,38708.0,0.0022]
[1643741751675,0.68314129,38713.0,38707.0,0.0022]
[1643741751676,0.114619,38711.0,38707.0,0.0022]
[1643741751870,0.10821782,38708.0,38707.0,0.0022]
[1643741752072,0.77822329,38708.0,38707.0,0.0022]
[1643741753072,0.67000547,38708.0,38707.0,0.0022]
[1643741753273,0.450759,38708.0,38707.0,0.0022]
[1643741753473,0.400759,38708.0,38707.0,0.0022]
[1643741753675,0.41304909,38713.0,38707.0,0.0022]
[1643741753676,0.21919367,38713.0,38707.0,0.0022]
[1643741753878,0.2483316,38717.0,38707.0,0.0022]
[1643741754075,0.36462252,38722.0,38707.0,0.0022]
[1643741754280,0.349259,38721.0,38707.0,0.0022]
[1643741754476,0.1883302,38718.0,38710.0,0.00137281]
[1643741754677,0.7136966,38717.0,38710.0,0.00137281]
[1643741754878,0.27949816,38716.0,38710.0,0.00137281]
[1643741755078,0.400759,38715.0,38710.0,0.00137281]
[1643741755276,0.500759,38715.0,38710.0,0.00137281]
[1643741755524,0.500759,38715.0,38707.0,0.0022]
[1643741755723,0.1515,38715.0,38711.0,0.00137279]
[1643741755921,0.349259,38714.0,38711.0,0.00137279]
[1643741756523,0.57629061,38714.0,38711.0,0.00137279]
[1643741757022,0.349259,38714.0,38711.0,0.00137279]
[1643741757222,0.399259,38714.0,38711.0,0.00137279]
[1643741757422,0.349259,38714.0,38711.0,0.00137279]
[1643741757822,0.399259,38714.0,38707.0,0.10236491]
[1643741758126,0.05,38714.0,38711.0,0.00137279]
[1643741758322,0.349259,38713.0,38711.0,0.00137279]
[1643741758523,0.05,38712.0,38711.0,0.00137279]
[1643741758722,0.05,38715.0,38711.0,0.00137279]
[1643741758922,0.349259,38714.0,38711.0,0.00137279]
[1643741759167,0.1,38714.0,38711.0,0.00137277]
[1643741759368,0.349259,38713.0,38711.0,0.00137277]
[1643741759668,0.05,38712.0,38711.0,0.00137277]
[1643741759868,0.37949816,38716.0,38711.0,0.00137277]
[1643741760070,0.349259,38715.0,38711.0,0.00137277]
[1643741760272,0.25410825,38720.0,38707.0,0.10236491]
[1643741760469,0.23338989,38722.0,38712.0,0.00137276]
[1643741760675,0.349259,38721.0,38712.0,0.00137276]
[1643741760870,0.23748907,38720.0,38712.0,0.00137276]
[1643741761069,0.29292643,38720.0,38712.0,0.00137276]
[1643741761272,0.349259,38719.0,38712.0,0.00137276]
[1643741761470,0.349259,38719.0,38707.0,0.10236491]
[1643741761670,0.29292643,38720.0,38714.0,0.00137267]
[1643741761872,0.349259,38719.0,38714.0,0.00137267]
[1643741762672,0.349259,38719.0,38710.0,0.01]
[1643741762927,0.06459553,38721.0,38715.0,0.00137265]
[1643741763124,0.349259,38720.0,38715.0,0.00137265]
[1643741763521,0.349259,38721.0,38715.0,0.00137265]
[1643741763925,0.61483618,38721.0,38710.0,0.11161148]
[1643741764124,0.22920867,38720.0,38716.0,0.0013726]
[1643741764325,0.349259,38719.0,38716.0,0.0013726]
[1643741764525,0.399259,38719.0,38716.0,0.0013726]
[1643741764725,0.349259,38719.0,38716.0,0.0013726]
[1643741765125,0.349259,38719.0,38710.0,0.12992916]
[1643741765326,0.26557718,38721.0,38716.0,0.00137261]
[1643741765526,0.349259,38720.0,38716.0,0.00137261]
[1643741765932,0.57486346,38720.0,38716.0,0.00137261]
[1643741766127,0.5756347,38720.0,38716.0,0.00137261]
[1643741766328,0.5756347,38720.0,38710.0,0.11161148]
[1643741766527,0.2263757,38720.0,38716.0,0.0013726]
[1643741766769,0.349259,38719.0,38716.0,0.0013726]
[1643741767169,0.349259,38720.0,38716.0,0.0013726]
[1643741767369,0.349259,38720.0,38711.0,0.01847415]
[1643741767571,0.399259,38720.0,38716.0,0.0013726]
[1643741767971,1.97466764,38719.0,38716.0,0.0013726]
[1643741768173,0.349259,38718.0,38716.0,0.0013726]
[1643741768576,0.349259,38718.0,38710.0,0.11161148]
[1643741768774,0.05,38720.0,38715.0,0.00137263]
[1643741768973,0.349259,38719.0,38715.0,0.00137263]
[1643741769372,0.54257731,38721.0,38715.0,0.00137263]
[1643741769373,0.349259,38720.0,38715.0,0.00137263]
[1643741769874,0.399259,38720.0,38710.0,0.01]
[1643741770074,0.399259,38720.0,38716.0,0.00137261]
[1643741770075,0.349259,38720.0,38716.0,0.00137261]
[1643741771123,0.349259,38720.0,38710.0,0.03190095]
[1643741771321,0.349259,38720.0,38716.0,0.0013726]
[1643741772324,0.349259,38720.0,38710.0,0.01]
[1643741772524,0.2483316,38719.0,38716.0,0.0013726]
[1643741772724,0.349259,38718.0,38716.0,0.0013726]
[1643741773224,0.349259,38719.0,38716.0,0.00099261]
[1643741773423,0.349259,38719.0,38711.0,0.02181636]
[1643741773629,0.21360427,38718.0,38712.0,0.09368329]
[1643741773823,0.349259,38717.0,38712.0,0.09368329]
[1643741774269,0.34915975,38717.0,38712.0,0.09368329]
[1643741774671,0.21360427,38718.0,38712.0,0.09368329]
[1643741774868,0.349363,38717.0,38712.0,0.09368329]
[1643741775068,0.21360427,38718.0,38712.0,0.09368329]
[1643741775467,0.21360427,38718.0,38710.0,0.01]
[1643741776069,0.2483316,38721.0,38712.0,0.00137084]
[1643741776273,0.349363,38720.0,38712.0,0.00137084]
[1643741776471,0.22936921,38719.0,38712.0,0.00137084]
[1643741776770,0.349363,38718.0,38712.0,0.00137084]
[1643741776969,0.349363,38718.0,38710.0,0.01]
[1643741777272,0.349363,38718.0,38713.0,0.0013708]
[1643741777273,0.26006815,38718.0,38713.0,0.0013708]
[1643741777470,0.349363,38717.0,38713.0,0.0013708]
[1643741777772,0.62913967,38717.0,38713.0,0.0013708]
[1643741778221,0.62807211,38717.0,38710.0,0.01]
[1643741778424,0.349363,38716.0,38713.0,0.0013708]
[1643741778622,0.349363,38715.0,38713.0,0.0013708]
[1643741778830,0.27563418,38717.0,38713.0,0.0013708]
[1643741778831,1.2483316,38714.0,38713.0,0.0013708]
[1643741779025,1.500863,38714.0,38713.0,0.0013708]
[1643741779223,1.600863,38714.0,38713.0,0.0013708]
[1643741779432,1.71544066,38714.0,38710.0,0.01]
[1643741779626,0.18496506,38711.0,38710.0,0.01]
[1643741779827,0.83415966,38711.0,38707.0,0.0022]
[1643741780031,0.413984,38710.0,38707.0,0.0022]
[1643741780223,0.064621,38709.0,38707.0,0.0022]
[1643741780423,0.349363,38708.0,38707.0,0.0022]
[1643741780628,0.55498946,38708.0,38707.0,0.0022]
[1643741780833,0.55498946,38708.0,38699.0,0.0011]
[1643741780834,1.4,38706.0,38679.0,0.005401]
[1643741781140,0.09638911,38681.0,38680.0,0.32670263]
[1643741781339,0.05,38688.0,38670.0,0.0011]
[1643741781340,0.6439,38679.0,38670.0,0.0011]
[1643741781534,1.4,38680.0,38666.0,0.005]
[1643741781535,0.349363,38678.0,38667.0,0.32656055]
[1643741781779,0.349363,38678.0,38665.0,0.0016572]
[1643741781780,0.6428,38669.0,38665.0,0.0016572]
[1643741781977,0.3998316,38678.0,38664.0,0.0134806]
[1643741781978,0.849363,38668.0,38664.0,0.0134806]
[1643741782182,0.6439,38665.0,38664.0,0.0134806]
[1643741782377,1.044763,38665.0,38664.0,0.0134806]
[1643741782577,1.144763,38665.0,38661.0,0.10133]
[1643741782777,1.144763,38665.0,38651.0,0.00211]
[1643741782778,0.5976946,38664.0,38651.0,0.00211]
[1643741782978,0.064686,38666.0,38652.0,0.25871]
[1643741782979,0.6439,38662.0,38652.0,0.25871]
[1643741783176,0.6439,38662.0,38652.0,0.40773]
[1643741783376,0.0515,38661.0,38660.0,0.71111381]
[1643741783575,0.0515,38662.0,38660.0,0.78599968]
[1643741783781,0.0515,38662.0,38660.0,0.67488587]
[1643741783978,0.5,38677.0,38661.0,1.46247778]
[1643741783979,0.0515,38667.0,38661.0,1.46247778]
[1643741784176,0.0515,38673.0,38661.0,1.46247778]
[1643741784374,0.2483316,38676.0,38661.0,1.46247778]
[1643741784375,0.2998316,38672.0,38661.0,0.21247778]
[1643741784575,0.400863,38671.0,38662.0,0.00135889]
[1643741784976,0.0515,38671.0,38662.0,0.00135889]
[1643741785423,0.0515,38671.0,38665.0,0.09739357]
[1643741785618,0.0515,38671.0,38665.0,0.0013588]
[1643741785826,0.42459268,38689.0,38669.0,0.1]
[1643741786021,0.44334946,38691.0,38676.0,0.09379677]
[1643741786022,1.363,38687.0,38676.0,0.09379677]
[1643741786224,0.42869146,38699.0,38667.0,0.9671316]
[1643741786225,0.349363,38686.0,38667.0,0.9671316]
[1643741786419,0.37459268,38699.0,38668.0,0.05]
[1643741786624,0.37459268,38699.0,38669.0,0.2483316]
[1643741786625,0.32459268,38698.0,38669.0,0.2483316]
[1643741786820,0.16170766,38685.0,38682.0,0.0006791]
[1643741787020,0.400863,38684.0,38682.0,0.0006791]
[1643741787222,0.390863,38684.0,38683.0,0.10229872]
[1643741787820,0.490863,38684.0,38683.0,0.10229872]
[1643741788025,0.1,38692.0,38683.0,0.32231897]
[1643741788026,0.0515,38689.0,38683.0,0.32231897]
[1643741788222,0.05,38692.0,38683.0,0.32231897]
[1643741788421,1.363,38698.0,38683.0,0.10229872]
[1643741788620,0.349428,38697.0,38683.0,0.10229872]
[1643741788821,0.400928,38697.0,38683.0,0.10229872]
[1643741789025,0.14550674,38693.0,38683.0,0.10229872]
[1643741789276,1.59841397,38693.0,38689.0,0.10085563]
[1643741789471,0.349428,38692.0,38689.0,0.10085563]
[1643741789671,0.349428,38692.0,38688.0,0.00067899]
[1643741790180,0.00038407,38685.0,38682.0,0.00271635]
[1643741790372,1.4,38690.0,38678.0,0.019727]
[1643741790373,0.349428,38684.0,38678.0,0.019727]
[1643741790573,1.50431267,38684.0,38682.0,0.0054327]
[1643741790774,1.68068818,38683.0,38682.0,0.0054327]
[1643741790976,1.73218818,38683.0,38682.0,0.0054327]
[1643741791378,3.19518818,38683.0,38682.0,0.0054327]
[1643741791576,3.19518818,38683.0,38678.0,0.019727]
[1643741791781,3.19518818,38683.0,38661.0,0.2483316]
[1643741791782,1.363,38680.0,38661.0,0.2483316]
[1643741791976,1.363,38680.0,38661.0,0.2340316]
[1643741791977,0.400928,38679.0,38661.0,0.2340316]
[1643741792175,0.400928,38679.0,38660.0,0.5]
[1643741792176,1.363,38672.0,38660.0,0.5]
[1643741792376,0.14195952,38663.0,38660.0,0.5]
[1643741792577,0.0515,38662.0,38660.0,0.5]
[1643741793037,0.0515,38662.0,38660.0,0.50067864]
[1643741793238,0.0515,38662.0,38661.0,0.002]
[1643741793436,0.0515,38662.0,38661.0,0.0031]
[1643741793837,0.0515,38662.0,38661.0,0.6031]
[1643741793838,0.0465,38662.0,38661.0,0.6031]
[1643741794446,0.0465,38662.0,38661.0,0.0031]
[1643741794840,0.95020343,38662.0,38661.0,0.10663773]
[1643741795439,0.95020343,38662.0,38661.0,0.3696304]
[1643741795839,0.95020343,38662.0,38660.0,0.00135558]
[1643741796037,9.0,38662.0,38660.0,0.00135558]
[1643741796237,9.2148324,38662.0,38658.0,0.25108715]
[1643741796438,9.2148324,38662.0,38659.0,0.08195694]
[1643741796670,9.2148324,38662.0,38659.0,0.00135559]
[1643741796872,0.349428,38661.0,38659.0,0.00135559]
[1643741797076,1.29667614,38660.0,38659.0,0.00135559]
[1643741797376,1.54893415,38660.0,38659.0,0.00135559]
[1643741797574,0.49893415,38660.0,38653.0,0.05]
[1643741797773,0.349428,38659.0,38658.0,0.00135565]
[1643741797972,0.05,38659.0,38658.0,0.00135565]
[1643741798175,1.299428,38659.0,38658.0,0.00135565]
[1643741798576,0.349428,38659.0,38658.0,0.00135565]
[1643741798778,0.349428,38659.0,38653.0,0.05]
[1643741798779,0.399428,38659.0,38653.0,0.05]
[1643741798974,0.349428,38659.0,38657.0,0.00135568]
[1643741799174,0.399428,38659.0,38657.0,0.00135568]
[1643741799475,0.399428,38659.0,38655.0,0.21182532]
[1643741799676,0.399428,38659.0,38653.0,0.05]
[1643741800278,0.53578871,38659.0,38653.0,0.05]
[1643741800521,0.53578871,38659.0,38653.0,0.035]
[1643741800821,0.48578871,38659.0,38653.0,0.03]
[1643741801420,0.48578871,38659.0,38654.0,0.00067619]
[1643741801622,0.24716851,38658.0,38654.0,0.00067619]
[1643741801826,0.24716851,38658.0,38650.0,4.99611]
[1643741801827,1.99315661,38657.0,38650.0,4.99611]
[1643741802026,1.4145,38656.0,38650.0,3.08852964]
[1643741802231,0.6439,38655.0,38650.0,3.08632964]
[1643741802424,0.08118457,38653.0,38650.0,3.08632964]
[1643741802723,1.813928,38652.0,38650.0,3.08632964]
[1643741802926,0.450928,38652.0,38650.0,3.08632964]
[1643741803325,1.4,38651.0,38650.0,2.36025167]
[1643741803532,1.4,38651.0,38632.0,9.953e-05]
[1643741803533,0.05,38642.0,38632.0,9.953e-05]
[1643741803735,0.05,38642.0,38617.0,0.14343021]
[1643741803736,0.1,38630.0,38612.0,0.0011]
[1643741803931,0.346638,38629.0,38608.0,0.48803949]
[1643741804182,0.346638,38629.0,38608.0,0.45373949]
[1643741804183,0.05,38624.0,38608.0,0.45373949]
[1643741804376,0.15,38625.0,38608.0,0.45373949]
[1643741804377,1.17790589,38623.0,38608.0,0.45373949]
[1643741804580,0.375298,38622.0,38608.0,0.45373949]
[1643741804786,0.5956,38618.0,38608.0,0.45373949]
[1643741804979,0.397168,38617.0,38608.0,0.45093949]
[1643741805180,2.17212735,38614.0,38604.0,0.05]
[1643741805380,0.17073082,38616.0,38613.0,0.55]
[1643741805381,0.06478407,38615.0,38613.0,0.55]
[1643741805576,0.11038407,38615.0,38613.0,0.34090691]
[1643741805776,0.42,38623.0,38614.0,1.4]
[1643741805977,0.0476,38622.0,38614.0,1.4]
[1643741806377,0.0476,38622.0,38619.0,0.14015723]
[1643741806577,0.0476,38622.0,38620.0,0.33127785]
[1643741806981,0.42,38623.0,38621.0,1.4]
[1643741807179,0.133511,38638.0,38622.0,1.4]
[1643741807180,0.0476,38631.0,38622.0,1.4]
[1643741807382,0.46,38636.0,38623.0,0.32701228]
[1643741807383,0.01925732,38633.0,38623.0,0.32701228]
[1643741807579,0.01925732,38633.0,38619.0,0.00134683]
[1643741807580,0.05,38630.0,38619.0,0.00134683]
[1643741807785,0.064769,38627.0,38619.0,0.00134683]
[1643741808037,0.1,38623.0,38599.0,0.00072945]
[1643741808239,0.15,38618.0,38599.0,0.00072945]
[1643741808437,0.15,38618.0,38602.0,0.2954503]
[1643741808438,0.70185214,38617.0,38602.0,0.2954503]
[1643741808634,1.363,38613.0,38603.0,0.07431502]
[1643741808836,0.129603,38611.0,38603.0,0.07431502]
[1643741809035,0.395063,38610.0,38603.0,0.07431502]
[1643741809237,0.395063,38610.0,38606.0,0.001]
[1643741809238,0.443983,38610.0,38606.0,0.001]
[1643741809441,0.27511486,38609.0,38606.0,0.001]
[1643741809636,0.0476,38608.0,38606.0,0.001]
[1643741809835,0.349601,38607.0,38606.0,0.001]
[1643741810042,0.349601,38607.0,38606.0,0.28059123]
[1643741810043,0.397201,38607.0,38606.0,0.28059123]
[1643741810236,0.0476,38607.0,38606.0,1.53059123]
[1643741810435,0.0476,38607.0,38606.0,0.41446066]
[1643741810634,0.0476,38607.0,38606.0,1.81446066]
[1643741810835,0.37511486,38614.0,38606.0,1.81446066]
[1643741810836,0.1,38614.0,38606.0,1.81446066]
[1643741811038,0.01940636,38618.0,38608.0,1.4]
[1643741811236,1.27940428,38633.0,38623.0,0.21013404]
[1643741811237,0.0476,38627.0,38623.0,0.21013404]
[1643741811437,0.349606,38626.0,38624.0,0.001]
[1643741811681,0.5,38630.0,38617.0,0.02040636]
[1643741811878,0.0476,38629.0,38617.0,0.01940636]
[1643741812081,0.0476,38629.0,38624.0,0.07584965]
[1643741812283,0.349606,38628.0,38625.0,0.001]
[1643741812480,0.0476,38627.0,38625.0,0.001]
[1643741812686,0.87206586,38626.0,38625.0,0.001]
[1643741812881,0.87206586,38626.0,38617.0,0.01940636]
[1643741812882,0.91966586,38626.0,38617.0,0.01940636]
[1643741813080,0.05,38624.0,38617.0,0.01940636]
[1643741813279,0.387223,38623.0,38617.0,0.01940636]
[1643741813478,0.387223,38623.0,38617.0,0.11194674]
[1643741813678,0.387223,38623.0,38618.0,0.08254721]
[1643741813884,0.387223,38623.0,38619.0,0.001]
[1643741814283,0.339623,38623.0,38619.0,0.001]
[1643741814479,0.246951,38625.0,38619.0,0.001]
[1643741814881,0.49714099,38625.0,38619.0,0.001]
[1643741815082,0.54474099,38625.0,38624.0,0.08314476]
[1643741815289,1.363,38624.0,38620.0,0.001]
[1643741815527,0.339623,38623.0,38617.0,0.01940636]
[1643741815726,0.389623,38623.0,38617.0,0.01940636]
[1643741816127,0.389623,38623.0,38619.0,0.12311357]
[1643741816326,0.389623,38623.0,38620.0,0.001]
[1643741816727,0.389623,38623.0,38621.0,0.09603821]
[1643741816927,0.39103022,38623.0,38621.0,0.09703821]
[1643741817129,0.39103022,38623.0,38621.0,0.09603821]
[1643741817731,0.34103022,38623.0,38621.0,0.09703821]
[1643741817938,0.339623,38623.0,38621.0,0.09703821]
[1643741818130,0.246951,38625.0,38621.0,0.09603821]
[1643741818327,0.00140721,38624.0,38622.0,0.001]
[1643741818526,0.339623,38623.0,38622.0,0.001]
[1643741818736,0.339623,38623.0,38622.0,0.10733729]
[1643741819375,9.0,38626.0,38622.0,0.10733729]
[1643741819376,0.00140721,38624.0,38622.0,0.10733729]
[1643741819574,0.237079,38623.0,38622.0,0.001]
[1643741819774,0.237079,38623.0,38621.0,0.09603821]
[1643741820176,0.237079,38623.0,38621.0,0.09703821]
[1643741820376,0.237079,38623.0,38616.0,0.001]
[1643741820582,0.25414085,38622.0,38616.0,0.02162125]
[1643741820779,0.00140721,38624.0,38616.0,0.02162125]
[1643741820780,1.363,38620.0,38616.0,0.02162125]
[1643741820977,0.65289484,38619.0,38616.0,0.02162125]
[1643741821575,1.363,38618.0,38606.0,0.001]
[1643741821775,1.363,38616.0,38612.0,0.00132042]
[1643741821977,0.349495,38615.0,38612.0,0.00132042]
[1643741822177,0.0476,38616.0,38612.0,0.00132042]
[1643741822377,0.00140729,38619.0,38612.0,0.00132042]
[1643741822378,0.399495,38615.0,38612.0,0.00132042]
[1643741822779,0.399495,38615.0,38611.0,0.001]
[1643741823048,0.3,38614.0,38607.0,0.18154662]
[1643741823247,0.399495,38615.0,38608.0,0.27576266]
[1643741823248,0.05,38615.0,38608.0,0.27576266]
[1643741823445,0.349495,38614.0,38609.0,0.001]
[1643741823744,0.349495,38614.0,38609.0,0.09526963]
[1643741823943,0.237079,38616.0,38610.0,0.001]
[1643741824145,0.05,38616.0,38610.0,0.001]
[1643741824342,0.349495,38621.0,38614.0,0.08431753]
[1643741824343,0.237079,38615.0,38614.0,0.08431753]
[1643741824542,0.349495,38620.0,38614.0,0.08431753]
[1643741824744,0.349495,38620.0,38615.0,0.092822]
[1643741824945,0.349495,38620.0,38616.0,0.001]
[1643741825145,0.237079,38625.0,38616.0,0.001]
[1643741825343,1.4,38623.0,38602.0,0.2919273]
[1643741825654,1.4,38623.0,38598.0,0.1]
[1643741825655,1.4,38623.0,38562.0,0.23677384]
[1643741825656,1.15,38574.0,38562.0,0.23677384]
[1643741825854,1.15,38574.0,38556.0,0.0999]
[1643741825855,1.05,38562.0,38556.0,0.0999]
[1643741826049,1.05,38562.0,38553.0,3.87330891]
[1643741826050,0.5956,38557.0,38553.0,3.30673891]
[1643741826249,0.5956,38557.0,38553.0,3.30173891]
[1643741826250,0.0489,38557.0,38553.0,3.30173891]
[1643741826445,1.4956,38554.0,38553.0,3.24499383]
[1643741826679,1.47131,38554.0,38553.0,2.35823849]
[1643741826880,1.47131,38554.0,38541.0,0.03407114]
[1643741826881,1.05,38552.0,38543.0,0.27821977]
[1643741827081,1.28836616,38551.0,38544.0,0.25944]
[1643741827280,1.28836616,38551.0,38541.0,0.03407114]
[1643741827281,0.5956,38547.0,38542.0,0.14948]
[1643741827479,1.61251358,38546.0,38542.0,0.14948]
[1643741827681,1.61251358,38546.0,38538.0,0.16421659]
[1643741827682,0.06491315,38544.0,38538.0,0.16421659]
[1643741827882,0.06491315,38544.0,38538.0,0.0208384]
[1643741827883,0.064916,38542.0,38538.0,0.0208384]
[1643741828078,1.4,38540.0,38528.0,0.27427716]
[1643741828277,0.237079,38539.0,38531.0,0.134]
[1643741828483,0.242079,38539.0,38538.0,0.29156975]
[1643741828682,0.1,38549.0,38540.0,1.14165]
[1643741828878,0.1,38549.0,38538.0,0.41446268]
[1643741828879,0.5,38549.0,38546.0,0.15269596]
[1643741829179,0.22061965,38560.0,38546.0,0.15269596]
[1643741829180,0.12185514,38557.0,38549.0,1.4]
[1643741829381,0.12185514,38557.0,38546.0,0.15269596]
[1643741829382,0.194708,38555.0,38550.0,0.27427716]
[1643741829579,0.259631,38566.0,38551.0,0.32970815]
[1643741829780,0.20064,38557.0,38551.0,0.07989467]
[1643741829980,1.26073546,38556.0,38552.0,0.09910377]
[1643741830180,0.20064,38557.0,38553.0,0.17531885]
[1643741833640,0.25835,38554.0,38545.0,0.25428674]
[1643741833836,0.00139457,38553.0,38549.0,0.10127789]
[1643741834037,0.25835,38552.0,38549.0,0.10097789]
[1643741834283,0.67835,38552.0,38551.0,0.9151517]
[1643741834479,0.67835,38552.0,38551.0,0.2148517]
[1643741834678,0.67835,38552.0,38549.0,0.10097789]
[1643741834878,0.27862428,38551.0,38535.0,0.05]
[1643741835085,0.53697428,38551.0,38549.0,0.00095319]
[1643741835379,0.53697428,38551.0,38549.0,0.00065319]
[1643741835380,0.50636,38551.0,38549.0,0.00065319]
[1643741835578,0.50636,38551.0,38549.0,0.00035319]
[1643741835781,0.10019862,38539.0,38536.0,0.15363407]
[1643741835982,1.67862428,38538.0,38537.0,0.0007]
[1643741836183,1.67862428,38538.0,38537.0,0.0004]